[Event "Titled Tuesday Blitz February 28 Early 2023"]
[White "Mirzanurov, Bulat"]
[Black "Da Silva Borges, Rodrigo"]
[WhiteFideId "4184521"]
[BlackFideId "2115778"]
[WhiteElo "2019"]
[BlackElo "2099"]
[Result "1-0"]
[Round "04"]
[TimeControl "180+2"]
[Date "2023.02.28"]
[WhiteClock "0:00:36"]
[BlackClock "0:00:10"]

1. e4 {[%clk 0:03:00]}  c5 {[%clk 0:02:59]} 2. Nf3 {[%clk 0:03:00]}  d6 {[%clk 0:02:58]} 3. d4 {[%clk 0:03:00]}  cxd4 {[%clk 0:02:59]} 4. Nxd4 {[%clk 0:03:01]}  Nf6 {[%clk 0:02:59]} 5. f3 {[%clk 0:03:01]}  Nc6 {[%clk 0:02:57]} 6. Nc3 {[%clk 0:03:00]}  e5 {[%clk 0:02:53]} 7. Nb3 {[%clk 0:02:58]}  Be7 {[%clk 0:02:53]} 8. Be3 {[%clk 0:02:56]}  O-O {[%clk 0:02:53]} 9. Qd2 {[%clk 0:02:56]}  a5 {[%clk 0:02:53]} 10. a4 {[%clk 0:02:45]}  Be6 {[%clk 0:02:52]} 11. O-O-O {[%clk 0:02:44]}  Rc8 {[%clk 0:02:48]} 12. Kb1 {[%clk 0:02:43]}  Nb4 {[%clk 0:02:47]} 13. g4 {[%clk 0:02:36]}  Qc7 {[%clk 0:01:46]} 14. g5 {[%clk 0:02:29]}  Nh5 {[%clk 0:01:36]} 15. Bd3 {[%clk 0:02:27]}  Nxd3 {[%clk 0:01:20]} 16. Qxd3 {[%clk 0:02:28]}  f5 {[%clk 0:01:20]} 17. Nb5 {[%clk 0:02:13]}  Qd7 {[%clk 0:01:03]} 18. Nxd6 {[%clk 0:01:53]}  Qxa4 {[%clk 0:01:01]} 19. Nxf5 {[%clk 0:01:48]}  Bxf5 {[%clk 0:00:41]} 20. exf5 {[%clk 0:01:49]}  Nf4 {[%clk 0:00:36]} 21. Qe4 {[%clk 0:01:33]}  Qc6 {[%clk 0:00:32]} 22. Bxf4 {[%clk 0:01:27]}  exf4 {[%clk 0:00:33]} 23. h4 {[%clk 0:01:02]}  Bb4 {[%clk 0:00:29]} 24. Qd5+ {[%clk 0:00:55]}  Kh8 {[%clk 0:00:29]} 25. Qxc6 {[%clk 0:00:54]}  Rxc6 {[%clk 0:00:27]} 26. Rd5 {[%clk 0:00:53]}  a4 {[%clk 0:00:27]} 27. Nd4 {[%clk 0:00:53]}  Rd6 {[%clk 0:00:21]} 28. Rxd6 {[%clk 0:00:50]}  Bxd6 {[%clk 0:00:21]} 29. Re1 {[%clk 0:00:49]}  Bc5 {[%clk 0:00:19]} 30. Ne6 {[%clk 0:00:47]}  Bf2 {[%clk 0:00:18]} 31. Rd1 {[%clk 0:00:44]}  Re8 {[%clk 0:00:17]} 32. h5 {[%clk 0:00:41]}  Bb6 {[%clk 0:00:11]} 33. g6 {[%clk 0:00:41]}  h6 {[%clk 0:00:11]} 34. Rd7 {[%clk 0:00:40]}  Be3 {[%clk 0:00:10]} 35. Rxg7 {[%clk 0:00:37]}  Rxe6 {[%clk 0:00:10]} 36. Rh7+ {[%clk 0:00:36]}  Kg8 {[%clk 0:00:10]} 37. fxe6 {[%clk 0:00:36]} 1-0


[Site "https://www.chess.com"]

[Event "Titled Tuesday Blitz February 28 Early 2023"]
[White "Fabris, Alberto"]
[Black "Antonio, Jorge Carlos"]
[WhiteFideId "801348"]
[BlackFideId "113190"]
[WhiteElo "2120"]
[BlackElo "2247"]
[Result "1-0"]
[Round "04"]
[TimeControl "180+2"]
[Date "2023.02.28"]
[WhiteClock "0:00:39"]
[BlackClock "0:00:50"]

1. e4 {[%clk 0:03:00]}  c5 {[%clk 0:02:58]} 2. Nf3 {[%clk 0:03:01]}  e6 {[%clk 0:02:58]} 3. d4 {[%clk 0:03:00]}  cxd4 {[%clk 0:02:58]} 4. Nxd4 {[%clk 0:03:01]}  a6 {[%clk 0:02:58]} 5. c4 {[%clk 0:03:00]}  Nc6 {[%clk 0:02:59]} 6. Nc3 {[%clk 0:02:57]}  Nf6 {[%clk 0:02:58]} 7. Be2 {[%clk 0:02:55]}  Bb4 {[%clk 0:02:59]} 8. Nxc6 {[%clk 0:02:53]}  bxc6 {[%clk 0:02:59]} 9. Qc2 {[%clk 0:02:48]}  d5 {[%clk 0:02:58]} 10. cxd5 {[%clk 0:02:43]}  cxd5 {[%clk 0:02:57]} 11. e5 {[%clk 0:02:43]}  Ne4 {[%clk 0:02:57]} 12. Qa4+ {[%clk 0:02:41]}  Bd7 {[%clk 0:02:49]} 13. Qxb4 {[%clk 0:02:41]}  Nxc3 {[%clk 0:02:47]} 14. bxc3 {[%clk 0:02:37]}  Rb8 {[%clk 0:02:47]} 15. Qd4 {[%clk 0:02:36]}  O-O {[%clk 0:02:44]} 16. O-O {[%clk 0:02:36]}  Bb5 {[%clk 0:02:41]} 17. Bxb5 {[%clk 0:02:34]}  Rxb5 {[%clk 0:02:37]} 18. Ba3 {[%clk 0:02:32]}  Re8 {[%clk 0:02:30]} 19. Rfb1 {[%clk 0:02:29]}  Rxb1+ {[%clk 0:02:27]} 20. Rxb1 {[%clk 0:02:29]}  Qa5 {[%clk 0:02:27]} 21. Qb4 {[%clk 0:02:26]}  Qc7 {[%clk 0:02:25]} 22. Qd6 {[%clk 0:02:18]}  Qxc3 {[%clk 0:02:16]} 23. g3 {[%clk 0:02:09]}  h6 {[%clk 0:02:12]} 24. Rc1 {[%clk 0:01:59]}  Qd2 {[%clk 0:02:06]} 25. Qd7 {[%clk 0:01:51]}  Rf8 {[%clk 0:01:50]} 26. Kg2 {[%clk 0:01:40]}  Rb8 {[%clk 0:01:36]} 27. Rc7 {[%clk 0:01:29]}  Qg5 {[%clk 0:01:26]} 28. Qxf7+ {[%clk 0:01:27]}  Kh7 {[%clk 0:01:26]} 29. Qf4 {[%clk 0:01:17]}  Qg6 {[%clk 0:01:22]} 30. Bc1 {[%clk 0:01:10]}  a5 {[%clk 0:01:17]} 31. h4 {[%clk 0:01:02]}  Rb4 {[%clk 0:01:16]} 32. Qf3 {[%clk 0:00:58]}  Rxh4 {[%clk 0:01:13]} 33. Ba3 {[%clk 0:00:50]}  Rg4 {[%clk 0:01:05]} 34. Bf8 {[%clk 0:00:48]}  Qf5 {[%clk 0:01:02]} 35. Qxf5+ {[%clk 0:00:47]}  exf5 {[%clk 0:01:03]} 36. e6 {[%clk 0:00:46]}  Kg8 {[%clk 0:00:58]} 37. Bd6 {[%clk 0:00:40]}  Re4 {[%clk 0:00:55]} 38. Rc8+ {[%clk 0:00:39]}  Kh7 {[%clk 0:00:50]} 39. e7 {[%clk 0:00:39]} 1-0


[Site "https://www.chess.com"]

[Event "Titled Tuesday Blitz February 28 Early 2023"]
[White "Alhadad, Mahmoud"]
[Black "Cella, Glaucio Dalla Cortt"]
[WhiteFideId "11501863"]
[BlackFideId "2119455"]
[WhiteElo "1955"]
[BlackElo "2011"]
[Result "1-0"]
[Round "04"]
[TimeControl "180+2"]
[Date "2023.02.28"]
[WhiteClock "0:00:03"]
[BlackClock "0:00:02"]

1. e4 {[%clk 0:03:00]}  c5 {[%clk 0:02:41]} 2. Nc3 {[%clk 0:03:00]}  e6 {[%clk 0:02:41]} 3. f4 {[%clk 0:02:59]}  Nc6 {[%clk 0:02:40]} 4. Nf3 {[%clk 0:02:59]}  d5 {[%clk 0:02:40]} 5. Bb5 {[%clk 0:02:59]}  d4 {[%clk 0:02:40]} 6. Bxc6+ {[%clk 0:02:21]}  bxc6 {[%clk 0:02:41]} 7. Nb1 {[%clk 0:02:20]}  Ne7 {[%clk 0:02:41]} 8. d3 {[%clk 0:02:19]}  Ng6 {[%clk 0:02:37]} 9. b3 {[%clk 0:02:19]}  f5 {[%clk 0:02:19]} 10. e5 {[%clk 0:02:17]}  Be7 {[%clk 0:02:14]} 11. a4 {[%clk 0:02:03]}  O-O {[%clk 0:02:14]} 12. g3 {[%clk 0:01:56]}  c4 {[%clk 0:02:15]} 13. bxc4 {[%clk 0:01:54]}  Rb8 {[%clk 0:02:14]} 14. Ba3 {[%clk 0:01:51]}  c5 {[%clk 0:02:10]} 15. Nbd2 {[%clk 0:01:45]}  Re8 {[%clk 0:02:11]} 16. Nb3 {[%clk 0:01:44]}  Qc7 {[%clk 0:02:07]} 17. Qd2 {[%clk 0:01:37]}  Bd7 {[%clk 0:02:08]} 18. Bc1 {[%clk 0:01:19]}  Bc6 {[%clk 0:02:07]} 19. O-O {[%clk 0:01:18]}  h5 {[%clk 0:01:47]} 20. h4 {[%clk 0:01:13]}  Nf8 {[%clk 0:01:47]} 21. Ng5 {[%clk 0:01:09]}  Bxg5 {[%clk 0:01:37]} 22. hxg5 {[%clk 0:01:09]}  Ba8 {[%clk 0:01:38]} 23. Ba3 {[%clk 0:00:53]}  Rxb3 {[%clk 0:00:50]} 24. cxb3 {[%clk 0:00:52]}  Qc6 {[%clk 0:00:51]} 25. Kh2 {[%clk 0:00:49]}  Ng6 {[%clk 0:00:51]} 26. Rf2 {[%clk 0:00:42]}  Rb8 {[%clk 0:00:47]} 27. Rb1 {[%clk 0:00:39]}  Kf7 {[%clk 0:00:47]} 28. Qa5 {[%clk 0:00:30]}  Rxb3 {[%clk 0:00:41]} 29. Qxa7+ {[%clk 0:00:14]}  Kg8 {[%clk 0:00:42]} 30. Re1 {[%clk 0:00:07]}  Rxa3 {[%clk 0:00:36]} 31. a5 {[%clk 0:00:06]}  h4 {[%clk 0:00:21]} 32. Rg1 {[%clk 0:00:05]}  Rxd3 {[%clk 0:00:14]} 33. Qb8+ {[%clk 0:00:04]}  Kh7 {[%clk 0:00:13]} 34. gxh4 {[%clk 0:00:04]}  Nxh4 {[%clk 0:00:06]} 35. g6+ {[%clk 0:00:02]}  Kh6 {[%clk 0:00:05]} 36. Qd8 {[%clk 0:00:02]}  Nxg6 {[%clk 0:00:01]} 37. Qg5+ {[%clk 0:00:02]}  Kh7 {[%clk 0:00:02]} 38. Qxg6+ {[%clk 0:00:03]}  Kh8 {[%clk 0:00:02]} 39. Qxg7# {[%clk 0:00:03]} 1-0


[Site "https://www.chess.com"]

[Event "Titled Tuesday Blitz February 28 Early 2023"]
[White "Castellanos Villela, Alejandro"]
[Black "Tsyhanchuk, Stanislav"]
[WhiteFideId "3446379"]
[BlackFideId "13505130"]
[WhiteElo "2102"]
[BlackElo "2173"]
[Result "1/2-1/2"]
[Round "04"]
[TimeControl "180+2"]
[Date "2023.02.28"]
[WhiteClock "0:00:07"]
[BlackClock "0:00:09"]

1. e4 {[%clk 0:03:00]}  c5 {[%clk 0:02:59]} 2. Nf3 {[%clk 0:03:00]}  d6 {[%clk 0:03:00]} 3. d4 {[%clk 0:03:00]}  cxd4 {[%clk 0:02:59]} 4. Qxd4 {[%clk 0:03:01]}  Nc6 {[%clk 0:02:58]} 5. Qe3 {[%clk 0:03:01]}  g6 {[%clk 0:02:52]} 6. Be2 {[%clk 0:03:01]}  Bh6 {[%clk 0:02:42]} 7. Qc3 {[%clk 0:02:59]}  Bxc1 {[%clk 0:02:17]} 8. Qxh8 {[%clk 0:02:58]}  Kf8 {[%clk 0:02:15]} 9. O-O {[%clk 0:02:32]}  Bh6 {[%clk 0:02:05]} 10. Nc3 {[%clk 0:02:29]}  Be6 {[%clk 0:01:53]} 11. Qxh7 {[%clk 0:02:24]}  Qb6 {[%clk 0:01:46]} 12. Rab1 {[%clk 0:02:12]}  Nd4 {[%clk 0:01:41]} 13. Nxd4 {[%clk 0:02:00]}  Qxd4 {[%clk 0:01:42]} 14. Rfd1 {[%clk 0:02:00]}  Qe5 {[%clk 0:01:39]} 15. g3 {[%clk 0:01:32]}  a6 {[%clk 0:01:28]} 16. f4 {[%clk 0:01:19]}  Qc5+ {[%clk 0:01:28]} 17. Kg2 {[%clk 0:01:19]}  b5 {[%clk 0:01:20]} 18. a3 {[%clk 0:01:15]}  Qc8 {[%clk 0:01:12]} 19. Bf3 {[%clk 0:01:04]}  Rb8 {[%clk 0:00:54]} 20. Rd2 {[%clk 0:00:37]}  Qc5 {[%clk 0:00:43]} 21. Rf2 {[%clk 0:00:33]}  a5 {[%clk 0:00:41]} 22. Nd5 {[%clk 0:00:29]}  b4 {[%clk 0:00:31]} 23. axb4 {[%clk 0:00:28]}  axb4 {[%clk 0:00:32]} 24. Ra1 {[%clk 0:00:25]}  Bd7 {[%clk 0:00:09]} 25. h4 {[%clk 0:00:23]}  Bg7 {[%clk 0:00:09]} 26. h5 {[%clk 0:00:19]}  e6 {[%clk 0:00:09]} 27. hxg6 {[%clk 0:00:18]}  exd5 {[%clk 0:00:08]} 28. gxf7 {[%clk 0:00:18]}  Kxf7 {[%clk 0:00:08]} 29. exd5 {[%clk 0:00:18]}  Kf8 {[%clk 0:00:08]} 30. Re2 {[%clk 0:00:13]}  Qc8 {[%clk 0:00:08]} 31. Rh1 {[%clk 0:00:10]}  Bf5 {[%clk 0:00:08]} 32. Qh4 {[%clk 0:00:09]}  Bxc2 {[%clk 0:00:07]} 33. Rc1 {[%clk 0:00:08]}  b3 {[%clk 0:00:06]} 34. Qg5 {[%clk 0:00:07]}  Bf6 {[%clk 0:00:06]} 35. Qh5 {[%clk 0:00:06]}  Qf5 {[%clk 0:00:05]} 36. Qxf5 {[%clk 0:00:06]}  Bxf5 {[%clk 0:00:06]} 37. Rc6 {[%clk 0:00:05]}  Be7 {[%clk 0:00:05]} 38. Rc7 {[%clk 0:00:05]}  Bc2 {[%clk 0:00:04]} 39. g4 {[%clk 0:00:05]}  Bf6 {[%clk 0:00:03]} 40. g5 {[%clk 0:00:04]}  Bxb2 {[%clk 0:00:04]} 41. Bh5 {[%clk 0:00:04]}  Ne7 {[%clk 0:00:02]} 42. Rcxe7 {[%clk 0:00:04]}  Bc3 {[%clk 0:00:01]} 43. Rf7+ {[%clk 0:00:04]}  Kg8 {[%clk 0:00:02]} 44. Rc7 {[%clk 0:00:01]}  b2 {[%clk 0:00:02]} 45. Rxc2 {[%clk 0:00:01]}  b1=Q {[%clk 0:00:03]} 46. R7xc3 {[%clk 0:00:01]}  Rb2 {[%clk 0:00:03]} 47. Rc8+ {[%clk 0:00:02]}  Kg7 {[%clk 0:00:03]} 48. Rc7+ {[%clk 0:00:02]}  Kf8 {[%clk 0:00:04]} 49. Rc8+ {[%clk 0:00:03]}  Ke7 {[%clk 0:00:04]} 50. Rc7+ {[%clk 0:00:04]}  Kd8 {[%clk 0:00:05]} 51. Rc8+ {[%clk 0:00:05]}  Kd7 {[%clk 0:00:06]} 52. Rc7+ {[%clk 0:00:06]}  Kd8 {[%clk 0:00:07]} 53. Rc8+ {[%clk 0:00:06]}  Kd7 {[%clk 0:00:08]} 54. Rc7+ {[%clk 0:00:07]}  Kd8 {[%clk 0:00:09]} 1/2-1/2


[Site "https://www.chess.com"]

[Event "Titled Tuesday Blitz February 28 Early 2023"]
[White "Dilmukhametov, Artur"]
[Black "Romero Barreto, Jaime Jose"]
[WhiteFideId "24179922"]
[BlackFideId "3902498"]
[WhiteElo "2199"]
[BlackElo "2313"]
[Result "0-1"]
[Round "04"]
[TimeControl "180+2"]
[Date "2023.02.28"]
[WhiteClock "0:01:37"]
[BlackClock "0:02:07"]

1. d4 {[%clk 0:03:00]}  d5 {[%clk 0:02:59]} 2. Nc3 {[%clk 0:03:00]}  Nf6 {[%clk 0:02:56]} 3. Bf4 {[%clk 0:03:00]}  Nbd7 {[%clk 0:02:57]} 4. e3 {[%clk 0:02:57]}  c6 {[%clk 0:02:55]} 5. Bd3 {[%clk 0:02:53]}  g6 {[%clk 0:02:55]} 6. Nf3 {[%clk 0:02:50]}  Bg7 {[%clk 0:02:53]} 7. h4 {[%clk 0:02:49]}  Nh5 {[%clk 0:02:52]} 8. Bg5 {[%clk 0:02:44]}  h6 {[%clk 0:02:49]} 9. Bf4 {[%clk 0:02:41]}  Nxf4 {[%clk 0:02:50]} 10. exf4 {[%clk 0:02:40]}  Qb6 {[%clk 0:02:50]} 11. Rb1 {[%clk 0:02:27]}  Bxd4 {[%clk 0:02:46]} 12. Nxd4 {[%clk 0:02:24]}  Qxd4 {[%clk 0:02:46]} 13. Qd2 {[%clk 0:02:18]}  Nc5 {[%clk 0:02:45]} 14. h5 {[%clk 0:02:13]}  Nxd3+ {[%clk 0:02:45]} 15. cxd3 {[%clk 0:02:12]}  Bf5 {[%clk 0:02:45]} 16. Rd1 {[%clk 0:02:10]}  O-O-O {[%clk 0:02:41]} 17. hxg6 {[%clk 0:02:10]}  fxg6 {[%clk 0:02:34]} 18. O-O {[%clk 0:02:07]}  g5 {[%clk 0:02:29]} 19. fxg5 {[%clk 0:02:04]}  hxg5 {[%clk 0:02:29]} 20. Rfe1 {[%clk 0:02:02]}  Qh4 {[%clk 0:02:27]} 21. Kf1 {[%clk 0:02:01]}  Qh1+ {[%clk 0:02:25]} 22. Ke2 {[%clk 0:02:00]}  Bg4+ {[%clk 0:02:20]} 23. Ke3 {[%clk 0:01:57]}  Qxg2 {[%clk 0:02:20]} 24. Kd4 {[%clk 0:01:45]}  b6 {[%clk 0:02:17]} 25. Qxg5 {[%clk 0:01:41]}  c5+ {[%clk 0:02:17]} 26. Ke5 {[%clk 0:01:40]}  Rh5 {[%clk 0:02:10]} 27. f4 {[%clk 0:01:36]}  Rxg5+ {[%clk 0:02:06]} 28. fxg5 {[%clk 0:01:37]}  Qg3# {[%clk 0:02:07]} 0-1


[Site "https://www.chess.com"]

[Event "Titled Tuesday Blitz February 28 Early 2023"]
[White "Manukyan, Artyom"]
[Black "parintele_chess"]
[WhiteFideId "13305786"]
[WhiteElo "2078"]
[BlackElo "2244"]
[Result "1-0"]
[Round "04"]
[TimeControl "180+2"]
[Date "2023.02.28"]
[WhiteClock "0:00:22"]
[BlackClock "0:00:03"]

1. e4 {[%clk 0:02:58]}  c6 {[%clk 0:03:00]} 2. d4 {[%clk 0:02:58]}  d5 {[%clk 0:03:00]} 3. Nc3 {[%clk 0:02:59]}  dxe4 {[%clk 0:02:59]} 4. Nxe4 {[%clk 0:03:00]}  Nf6 {[%clk 0:03:00]} 5. Nxf6+ {[%clk 0:03:00]}  gxf6 {[%clk 0:03:01]} 6. c3 {[%clk 0:03:01]}  Bf5 {[%clk 0:03:01]} 7. g3 {[%clk 0:03:01]}  h5 {[%clk 0:03:00]} 8. Bg2 {[%clk 0:03:02]}  h4 {[%clk 0:03:00]} 9. Bf4 {[%clk 0:03:00]}  hxg3 {[%clk 0:02:58]} 10. hxg3 {[%clk 0:03:01]}  Rxh1 {[%clk 0:02:57]} 11. Bxh1 {[%clk 0:03:02]}  Nd7 {[%clk 0:02:54]} 12. Qd2 {[%clk 0:03:02]}  e6 {[%clk 0:02:53]} 13. O-O-O {[%clk 0:03:02]}  Qa5 {[%clk 0:02:53]} 14. a3 {[%clk 0:02:57]}  Nb6 {[%clk 0:02:42]} 15. Bc7 {[%clk 0:02:41]}  Bh6 {[%clk 0:02:22]} 16. f4 {[%clk 0:02:40]}  Qb5 {[%clk 0:02:13]} 17. Bxb6 {[%clk 0:02:29]}  axb6 {[%clk 0:02:14]} 18. Qe2 {[%clk 0:02:24]}  Qb3 {[%clk 0:02:09]} 19. Be4 {[%clk 0:02:19]}  Bxe4 {[%clk 0:01:39]} 20. Qxe4 {[%clk 0:02:20]}  Bf8 {[%clk 0:01:38]} 21. Qc2 {[%clk 0:02:16]}  Qd5 {[%clk 0:01:16]} 22. f5 {[%clk 0:02:11]}  Bxa3 {[%clk 0:00:42]} 23. bxa3 {[%clk 0:02:06]}  Rxa3 {[%clk 0:00:43]} 24. Kb1 {[%clk 0:01:36]}  Rb3+ {[%clk 0:00:37]} 25. Kc1 {[%clk 0:01:34]}  Ra3 {[%clk 0:00:30]} 26. Qb2 {[%clk 0:00:35]}  Rb3 {[%clk 0:00:27]} 27. Qa1 {[%clk 0:00:30]}  Qc4 {[%clk 0:00:22]} 28. Kd2 {[%clk 0:00:28]}  Ke7 {[%clk 0:00:16]} 29. Ne2 {[%clk 0:00:28]}  Rb5 {[%clk 0:00:14]} 30. Qa3+ {[%clk 0:00:25]}  Kd7 {[%clk 0:00:09]} 31. fxe6+ {[%clk 0:00:25]}  fxe6 {[%clk 0:00:10]} 32. Rh1 {[%clk 0:00:25]}  Kc8 {[%clk 0:00:03]} 33. Rh8+ {[%clk 0:00:22]} 1-0


[Site "https://www.chess.com"]

[Event "Titled Tuesday Blitz February 28 Early 2023"]
[White "Onslow, Alfie"]
[Black "Sprenar, Petr"]
[WhiteFideId "436976"]
[BlackFideId "397164"]
[WhiteElo "2114"]
[BlackElo "2182"]
[Result "0-1"]
[Round "04"]
[TimeControl "180+2"]
[Date "2023.02.28"]
[WhiteClock "0:00:02"]
[BlackClock "0:00:12"]

1. Nf3 {[%clk 0:02:59]}  d5 {[%clk 0:02:59]} 2. c4 {[%clk 0:02:58]}  e6 {[%clk 0:02:59]} 3. g3 {[%clk 0:02:57]}  Nf6 {[%clk 0:02:55]} 4. d4 {[%clk 0:02:57]}  Be7 {[%clk 0:02:47]} 5. Bg2 {[%clk 0:02:55]}  O-O {[%clk 0:02:48]} 6. O-O {[%clk 0:02:55]}  dxc4 {[%clk 0:02:48]} 7. Qa4 {[%clk 0:02:52]}  c6 {[%clk 0:02:43]} 8. Qxc4 {[%clk 0:02:51]}  b5 {[%clk 0:02:43]} 9. Qc2 {[%clk 0:02:50]}  Bb7 {[%clk 0:02:43]} 10. a4 {[%clk 0:02:50]}  Nbd7 {[%clk 0:02:31]} 11. Ne5 {[%clk 0:02:37]}  Nxe5 {[%clk 0:02:22]} 12. dxe5 {[%clk 0:02:37]}  Nd5 {[%clk 0:02:22]} 13. Rd1 {[%clk 0:02:36]}  Qb6 {[%clk 0:02:16]} 14. Nc3 {[%clk 0:02:32]}  Nxc3 {[%clk 0:02:03]} 15. Qxc3 {[%clk 0:02:14]}  c5 {[%clk 0:01:48]} 16. Bxb7 {[%clk 0:02:00]}  Qxb7 {[%clk 0:01:47]} 17. axb5 {[%clk 0:02:00]}  Qxb5 {[%clk 0:01:46]} 18. Be3 {[%clk 0:01:56]}  a5 {[%clk 0:01:36]} 19. Rd2 {[%clk 0:01:19]}  c4 {[%clk 0:01:18]} 20. Rd4 {[%clk 0:01:12]}  Rfc8 {[%clk 0:01:14]} 21. Rc1 {[%clk 0:01:11]}  Bb4 {[%clk 0:01:10]} 22. Qc2 {[%clk 0:01:08]}  c3 {[%clk 0:01:07]} 23. f4 {[%clk 0:00:41]}  h5 {[%clk 0:00:23]} 24. Kf2 {[%clk 0:00:40]}  Bc5 {[%clk 0:00:20]} 25. Qxc3 {[%clk 0:00:19]}  Bxd4 {[%clk 0:00:18]} 26. Qxc8+ {[%clk 0:00:20]}  Rxc8 {[%clk 0:00:18]} 27. Rxc8+ {[%clk 0:00:21]}  Kh7 {[%clk 0:00:18]} 28. Bxd4 {[%clk 0:00:21]}  Qd5 {[%clk 0:00:17]} 29. e3 {[%clk 0:00:18]}  Qh1 {[%clk 0:00:17]} 30. Rc7 {[%clk 0:00:17]}  Qxh2+ {[%clk 0:00:17]} 31. Kf3 {[%clk 0:00:17]}  Kg6 {[%clk 0:00:16]} 32. Ra7 {[%clk 0:00:16]}  Qh1+ {[%clk 0:00:15]} 33. Kf2 {[%clk 0:00:16]}  Qh2+ {[%clk 0:00:16]} 34. Kf3 {[%clk 0:00:16]}  Qh3 {[%clk 0:00:16]} 35. Kf2 {[%clk 0:00:17]}  Kf5 {[%clk 0:00:13]} 36. Rxf7+ {[%clk 0:00:14]}  Ke4 {[%clk 0:00:13]} 37. Rxg7 {[%clk 0:00:12]}  Qh2+ {[%clk 0:00:13]} 38. Ke1 {[%clk 0:00:09]}  Qg1+ {[%clk 0:00:12]} 39. Kd2 {[%clk 0:00:09]}  h4 {[%clk 0:00:12]} 40. g4 {[%clk 0:00:06]}  h3 {[%clk 0:00:12]} 41. f5 {[%clk 0:00:06]}  h2 {[%clk 0:00:12]} 42. fxe6 {[%clk 0:00:03]}  h1=Q {[%clk 0:00:12]} 43. Rf7 {[%clk 0:00:03]}  Qc1+ {[%clk 0:00:12]} 44. Ke2 {[%clk 0:00:02]}  Qhe1# {[%clk 0:00:12]} 0-1


[Site "https://www.chess.com"]

[Event "Titled Tuesday Blitz February 28 Early 2023"]
[White "Curtis, John"]
[Black "Coelho, Ramyres Santana"]
[WhiteFideId "3200256"]
[BlackFideId "2120690"]
[WhiteElo "2203"]
[BlackElo "1888"]
[Result "0-1"]
[Round "04"]
[TimeControl "180+2"]
[Date "2023.02.28"]
[WhiteClock "0:00:03"]
[BlackClock "0:02:09"]

1. e4 {[%clk 0:03:00]}  c5 {[%clk 0:03:00]} 2. Nf3 {[%clk 0:02:59]}  d6 {[%clk 0:03:00]} 3. d4 {[%clk 0:02:58]}  cxd4 {[%clk 0:03:01]} 4. Nxd4 {[%clk 0:02:58]}  Nf6 {[%clk 0:03:01]} 5. Nc3 {[%clk 0:02:58]}  a6 {[%clk 0:03:01]} 6. Bg5 {[%clk 0:02:58]}  e6 {[%clk 0:03:02]} 7. Bc4 {[%clk 0:02:57]}  Qc7 {[%clk 0:03:01]} 8. Bb3 {[%clk 0:02:56]}  Qc5 {[%clk 0:03:01]} 9. Be3 {[%clk 0:02:51]}  Qc7 {[%clk 0:03:01]} 10. g4 {[%clk 0:02:42]}  b5 {[%clk 0:03:01]} 11. g5 {[%clk 0:02:41]}  Nfd7 {[%clk 0:02:58]} 12. f4 {[%clk 0:02:02]}  Nc5 {[%clk 0:02:57]} 13. f5 {[%clk 0:01:56]}  Nxb3 {[%clk 0:02:56]} 14. axb3 {[%clk 0:01:41]}  b4 {[%clk 0:02:56]} 15. Na4 {[%clk 0:01:28]}  e5 {[%clk 0:02:47]} 16. Ne2 {[%clk 0:01:21]}  Bb7 {[%clk 0:02:47]} 17. Ng3 {[%clk 0:01:12]}  Nd7 {[%clk 0:02:46]} 18. O-O {[%clk 0:01:00]}  Rc8 {[%clk 0:02:46]} 19. c3 {[%clk 0:00:52]}  bxc3 {[%clk 0:02:36]} 20. bxc3 {[%clk 0:00:51]}  Be7 {[%clk 0:02:35]} 21. c4 {[%clk 0:00:50]}  Nc5 {[%clk 0:02:31]} 22. Nc3 {[%clk 0:00:22]}  O-O {[%clk 0:02:26]} 23. f6 {[%clk 0:00:22]}  Bd8 {[%clk 0:02:21]} 24. fxg7 {[%clk 0:00:17]}  Re8 {[%clk 0:02:17]} 25. Nd5 {[%clk 0:00:09]}  Bxd5 {[%clk 0:02:16]} 26. Qxd5 {[%clk 0:00:09]}  Ne6 {[%clk 0:02:15]} 27. Nh5 {[%clk 0:00:07]}  Qc6 {[%clk 0:02:11]} 28. Nf6+ {[%clk 0:00:02]}  Bxf6 {[%clk 0:02:10]} 29. gxf6 {[%clk 0:00:03]}  Qxd5 {[%clk 0:02:10]} 30. cxd5 {[%clk 0:00:03]}  Nd4 {[%clk 0:02:08]} 31. Bxd4 {[%clk 0:00:03]}  exd4 {[%clk 0:02:09]} 0-1


[Site "https://www.chess.com"]

[Event "Titled Tuesday Blitz February 28 Early 2023"]
[White "lisjakzlatko1"]
[Black "Vasques, Antonio Pedro Freixial"]
[BlackFideId "1908332"]
[WhiteElo "2156"]
[BlackElo "2212"]
[Result "1/2-1/2"]
[Round "04"]
[TimeControl "180+2"]
[Date "2023.02.28"]
[WhiteClock "0:00:36"]
[BlackClock "0:00:20"]

1. e4 {[%clk 0:03:00]}  c5 {[%clk 0:02:58]} 2. b4 {[%clk 0:02:59]}  cxb4 {[%clk 0:02:57]} 3. Bb2 {[%clk 0:02:59]}  Nc6 {[%clk 0:02:56]} 4. d4 {[%clk 0:02:55]}  d5 {[%clk 0:02:55]} 5. exd5 {[%clk 0:02:56]}  Qxd5 {[%clk 0:02:55]} 6. c4 {[%clk 0:02:56]}  bxc3 {[%clk 0:02:54]} 7. Nxc3 {[%clk 0:02:56]}  Qxd4 {[%clk 0:02:53]} 8. Nd5 {[%clk 0:02:55]}  Qxd1+ {[%clk 0:01:53]} 9. Rxd1 {[%clk 0:02:52]}  Bd7 {[%clk 0:01:47]} 10. Nc7+ {[%clk 0:02:48]}  Kd8 {[%clk 0:01:47]} 11. Nxa8 {[%clk 0:02:48]}  Kc8 {[%clk 0:01:47]} 12. Bc4 {[%clk 0:02:28]}  e6 {[%clk 0:01:35]} 13. Nf3 {[%clk 0:02:27]}  Bb4+ {[%clk 0:01:34]} 14. Ke2 {[%clk 0:02:20]}  Nf6 {[%clk 0:01:34]} 15. Ne5 {[%clk 0:02:04]}  Nxe5 {[%clk 0:01:02]} 16. Bxe5 {[%clk 0:02:02]}  Ba5 {[%clk 0:01:03]} 17. Rc1 {[%clk 0:01:54]}  Bc6 {[%clk 0:00:58]} 18. Bb5 {[%clk 0:01:47]}  Kd7 {[%clk 0:00:55]} 19. Rhd1+ {[%clk 0:01:44]}  Nd5 {[%clk 0:00:54]} 20. Bxc6+ {[%clk 0:01:21]}  bxc6 {[%clk 0:00:55]} 21. Rc2 {[%clk 0:01:21]}  Rxa8 {[%clk 0:00:36]} 22. Rb1 {[%clk 0:01:19]}  Bb6 {[%clk 0:00:27]} 23. a4 {[%clk 0:01:13]}  f6 {[%clk 0:00:26]} 24. Bg3 {[%clk 0:01:08]}  e5 {[%clk 0:00:26]} 25. h4 {[%clk 0:00:50]}  h5 {[%clk 0:00:23]} 26. Rb3 {[%clk 0:00:42]}  Bc7 {[%clk 0:00:20]} 27. Rb7 {[%clk 0:00:41]}  Kc8 {[%clk 0:00:19]} 28. Rb3 {[%clk 0:00:38]}  Kd7 {[%clk 0:00:19]} 29. Rb7 {[%clk 0:00:36]}  Kc8 {[%clk 0:00:19]} 30. Rb3 {[%clk 0:00:36]}  Kd7 {[%clk 0:00:20]} 1/2-1/2


[Site "https://www.chess.com"]

[Event "Titled Tuesday Blitz February 28 Early 2023"]
[White "Larina, Maria"]
[Black "Korpics, Zsolt"]
[WhiteFideId "24113182"]
[BlackFideId "705241"]
[WhiteElo "1848"]
[BlackElo "2332"]
[Result "1/2-1/2"]
[Round "04"]
[TimeControl "180+2"]
[Date "2023.02.28"]
[WhiteClock "0:01:06"]
[BlackClock "0:02:06"]

1. e4 {[%clk 0:03:00]}  c5 {[%clk 0:02:59]} 2. Nc3 {[%clk 0:03:00]}  Nc6 {[%clk 0:02:59]} 3. g3 {[%clk 0:03:00]}  g6 {[%clk 0:02:58]} 4. Bg2 {[%clk 0:03:00]}  Bg7 {[%clk 0:02:56]} 5. d3 {[%clk 0:03:00]}  d6 {[%clk 0:02:56]} 6. Nh3 {[%clk 0:02:55]}  e6 {[%clk 0:02:47]} 7. f4 {[%clk 0:02:53]}  Nge7 {[%clk 0:02:47]} 8. O-O {[%clk 0:02:53]}  O-O {[%clk 0:02:40]} 9. g4 {[%clk 0:02:45]}  f5 {[%clk 0:02:38]} 10. exf5 {[%clk 0:02:37]}  exf5 {[%clk 0:02:32]} 11. g5 {[%clk 0:02:32]}  d5 {[%clk 0:02:30]} 12. Qf3 {[%clk 0:02:13]}  Be6 {[%clk 0:02:24]} 13. Re1 {[%clk 0:02:12]}  Bf7 {[%clk 0:02:22]} 14. Ne2 {[%clk 0:02:01]}  d4 {[%clk 0:02:19]} 15. Nf2 {[%clk 0:01:30]}  Qd7 {[%clk 0:02:11]} 16. h4 {[%clk 0:01:24]}  Nb4 {[%clk 0:02:07]} 17. Qxb7 {[%clk 0:01:07]}  Qc7 {[%clk 0:02:06]} 18. Qxc7 {[%clk 0:01:06]} 1/2-1/2


[Site "https://www.chess.com"]